fUSD/lending_fUSD_20250503
["ID","MTS","AMOUNT","RATE_DAILY","PERIOD"]
[359672515,1746239448691,-450.0,0.00019867,2]
[359672516,1746239448702,-1032.87,0.00019867,2]
[359672517,1746239448713,-450.0,0.00019867,2]
[359672518,1746239448724,-450.0,0.00019867,2]
[359672519,1746239448736,-544.01,0.00019867,2]
[359672520,1746239448747,-552.36,0.00019867,2]
[359672521,1746239448757,-450.0,0.00019867,2]
[359672522,1746239448768,-1377.3,0.00019867,2]
[359672523,1746239448779,-450.0,0.00019867,2]
[359672524,1746239448790,-450.0,0.00019867,2]
[359672525,1746239448801,-682.9,0.00019867,2]
[359672526,1746239448813,-523.9,0.00019867,2]
[359672527,1746239448824,-450.0,0.00019867,2]
[359672528,1746239448835,-482.9,0.00019867,2]
[359672529,1746239448846,-528.59,0.00019867,2]
[359672530,1746239448858,-450.0,0.00019867,2]
[359672531,1746239448870,-450.0,0.00019867,2]
[359672532,1746239448881,-614.2,0.00019867,2]
[359672533,1746239448891,-450.0,0.00019867,2]
[359672534,1746239448902,-450.0,0.00019867,2]
[359672535,1746239448913,-560.66,0.00019867,2]
[359672536,1746239448923,-720.67,0.00019867,2]
[359672537,1746239448934,-711.7,0.00019867,2]
[359672538,1746239448944,-1649.13,0.00019867,2]
[359672539,1746239448955,-450.0,0.00019867,2]
[359672540,1746239448966,-560.78,0.00019867,2]
[359672541,1746239448976,-635.99,0.00019867,2]
[359672542,1746239448986,-466.47,0.00019867,2]
[359672543,1746239448998,-1120.02,0.00019867,2]
[359672544,1746239449008,-450.0,0.00019867,2]
[359672545,1746239449018,-450.0,0.00019867,2]
[359672546,1746239449029,-450.0,0.00019867,2]
[359672547,1746239449039,-951.79,0.00019867,2]
[359672548,1746239449050,-450.0,0.00019867,2]
[359672549,1746239449557,-450.0,0.00019867,2]
[359672550,1746239449582,-516.14,0.00019867,2]
[359672551,1746239449597,-1432.92,0.00019867,2]
[359672552,1746239449607,-497.75,0.00019867,2]
[359672553,1746239449618,-450.0,0.00019867,2]
[359672554,1746239449627,-604.28,0.00019867,2]
[359672555,1746239449637,-632.47,0.00019867,2]
[359672556,1746239449647,-1648.11,0.00019867,2]
[359672557,1746239449656,-680.06,0.00019867,2]
[359672558,1746239449667,-450.0,0.00019867,2]
[359672559,1746239449676,-450.0,0.00019867,2]
[359672560,1746239449686,-450.0,0.00019867,2]
[359672561,1746239449696,-463.62,0.00019867,2]
[359672562,1746239449705,-977.42,0.00019867,2]
[359672563,1746239449715,-818.31,0.00019867,2]
[359672564,1746239449725,-450.0,0.00019867,2]
[359672565,1746239449734,-450.0,0.00019867,2]
[359672566,1746239449743,-450.0,0.00019867,2]
[359672567,1746239449753,-329.73740103,0.00019867,2]
[359672568,1746239449762,-450.0,0.00019867,2]
[359672569,1746239449771,-2480.99,0.00019867,2]
[359672570,1746239449781,-745.52,0.00019867,2]
[359672571,1746239449790,-1087.32,0.00019867,2]
[359672572,1746239449800,-712.48,0.00019867,2]
[359672573,1746239449809,-2238.11,0.00019867,2]
[359672574,1746239449819,-588.96,0.00019867,2]
[359672575,1746239449829,-505.72372806,0.00019868,2]
[359672576,1746239449839,-450.0,0.00019868,2]
[359672577,1746239449849,-356.92621628,0.00019868,2]
[359672578,1746239449859,-150.0,0.00019868,2]
[359672579,1746239449869,-402.99682489,0.00019873,2]
[359672580,1746239449879,-500.0,0.00019873,2]
[359672581,1746239449890,-500.0,0.00019873,2]
[359672582,1746239449899,-500.0,0.00019873,2]
[359672583,1746239449911,-500.0,0.00019873,2]
[359672584,1746239449921,-500.0,0.00019873,2]
[359672585,1746239449930,-500.0,0.00019873,2]
[359672586,1746239449939,-500.0,0.00019873,2]
[359672587,1746239449951,-500.0,0.00019873,2]
[359672588,1746239449962,-12500.0,0.00019874,2]
[359672589,1746239449972,-12500.0,0.00019874,2]
[359672590,1746239449983,-166.2109942,0.00019878,2]
[359672591,1746239449995,-3843.60593959,0.00019881,2]
[359672592,1746239450005,-12500.0,0.00019882,2]
[359672593,1746239450015,-12500.0,0.00019882,2]
[359672594,1746239450026,-235.05660728,0.00019888,2]
[359672595,1746239450037,-1000.0,0.00019888,2]
[359672596,1746239450047,-3253.30568586,0.00019889,2]
[359672597,1746239450056,-935.549,0.00019889,2]
[359672598,1746239450066,-4008.0,0.00019889,2]
[359672599,1746239450075,-12500.0,0.00019891,2]
[359672600,1746239450087,-12500.0,0.00019891,2]
[359672601,1746239450098,-150.0,0.00019893,2]
[359672602,1746239450108,-894.45485732,0.00019896,2]
[359672603,1746239450118,-12500.0,0.000199,2]
[359672604,1746239450129,-166.2109942,0.000199,2]
[359672605,1746239450140,-12500.0,0.000199,2]
[359672606,1746239450150,-2780.94450003,0.000199,2]
[359672607,1746239450161,-5152.27893101,0.000199,2]
[359672608,1746239450172,-165.34908229,0.000199,2]
[359672609,1746239450184,-28599.50222021,0.000199,2]
[359672610,1746239450193,-3015.50152939,0.000199,3]
[359672611,1746239450203,-2462.62363216,0.000199,2]
[359672612,1746239450213,-219.49622307,0.000199,2]
[359672613,1746239450223,-180.84581838,0.000199,3]
[359672614,1746239450233,-200.49647256,0.000199,2]
[359672615,1746239450244,-49213.68569732,0.000199,2]
[359672616,1746239450254,-2574.75362702,0.000199,2]
[359672617,1746239450264,-1828.0,0.000199,2]
[359672618,1746239450274,-150.0,0.00019903,2]
[359672619,1746239450284,-150.0,0.00019906,2]
[359672620,1746239450293,-150.0,0.00019919,2]
[359672621,1746239450303,-150.0,0.00019919,2]
[359672622,1746239450313,-323.067,0.00019932,2]
[359672623,1746239450322,-150.0,0.00019932,2]
[359672624,1746239450333,-150.0,0.00019937,2]
[359672625,1746239450343,-150.0,0.00019939,2]
[359672626,1746239450353,-150.0,0.00019945,2]
[359672627,1746239450363,-959.0,0.00019945,2]
[359672628,1746239450374,-4093.995,0.00019948,2]
[359672629,1746239450384,-152.88244308,0.0001995,2]
[359672630,1746239450394,-150.0,0.00019953,2]
[359672631,1746239450404,-150.0,0.00019953,2]
[359672632,1746239450414,-150.0,0.00019961,2]
[359672633,1746239450423,-150.0,0.00019963,2]
[359672634,1746239450433,-150.0,0.00019968,2]
[359672635,1746239450443,-514.0,0.0001997,2]
[359672636,1746239450455,-500.0,0.00019971,2]
[359672637,1746239450465,-228.28560537,0.00019971,2]
[359672638,1746239450475,-150.0,0.00019971,2]
[359672639,1746239450485,-500.0,0.00019971,2]
[359672640,1746239450494,-500.0,0.00019971,2]
[359672641,1746239450504,-150.0,0.00019971,2]
[359672642,1746239450514,-500.0,0.00019971,2]
[359672643,1746239450523,-222.40857925,0.00019971,2]
[359672644,1746239450534,-500.0,0.00019971,2]
[359672645,1746239450545,-150.0,0.00019971,2]
[359672646,1746239450554,-500.0,0.00019971,2]
[359672647,1746239450563,-500.0,0.00019971,2]
[359672648,1746239450573,-500.0,0.00019971,2]
[359672649,1746239450582,-500.0,0.00019971,2]
[359672650,1746239450592,-641.08241789,0.00019971,2]
[359672651,1746239450601,-500.0,0.00019971,2]
[359672652,1746239450611,-24428.0,0.00019973,2]
[359672653,1746239450621,-503.14930803,0.00019973,2]
[359672654,1746239450630,-500.0,0.00019973,2]
[359672655,1746239450639,-544.89074326,0.00019973,2]
[359672656,1746239450649,-500.0,0.00019973,2]
[359672657,1746239450658,-500.0,0.00019973,2]
[359672658,1746239450668,-501.15741321,0.00019973,2]
[359672659,1746239450678,-501.21994559,0.00019973,2]
[359672660,1746239450689,-500.0,0.00019973,2]
[359672661,1746239450698,-500.0,0.00019973,2]
[359672662,1746239450708,-500.0,0.00019973,2]
[359672663,1746239450717,-500.0,0.00019973,2]
[359672664,1746239450727,-505.26039964,0.00019973,2]
[359672665,1746239450736,-500.0,0.00019973,2]
[359672666,1746239450746,-303.17184781,0.00019973,2]
[359672667,1746239450756,-539.24803438,0.00019973,2]
[359672668,1746239450766,-502.58925245,0.00019973,2]
[359672669,1746239450775,-160.20238278,0.00019973,2]
[359672670,1746239450784,-517.26161729,0.00019973,2]
[359672671,1746239450795,-500.0,0.00019973,2]
[359672672,1746239450804,-243.83231524,0.00019973,2]
[359672673,1746239450814,-502.06385384,0.00019973,2]
[359672674,1746239450825,-500.8951883,0.00019973,2]
[359672675,1746239450834,-152.63342926,0.00019973,2]
[359672676,1746239450844,-150.0,0.00019973,2]
[359672677,1746239450853,-150.0,0.00019979,2]
[359672678,1746239450863,-38721.24492483,0.0001998,2]
[359672679,1746239450872,-40665.28617599,0.00019985,2]
[359672680,1746239450882,-4557.8631732,0.00019986,2]
[359672681,1746239450892,-285452.8299199,0.00019986,2]
[359672682,1746239450901,-8568.3047081,0.00019986,2]
[359672683,1746239450911,-5099.0927486,0.00019986,2]
[359672684,1746239450920,-4615.5814417,0.00019986,2]
[359672685,1746239450931,-99093.4474935,0.00019986,2]
[359672686,1746239450940,-598.70679333,0.00019987,2]
[359672687,1746239450950,-1077.03046632,0.0001999,2]
[359672688,1746239450960,-1077.03046632,0.0001999,2]
[359672689,1746239450969,-500.0,0.00019999,2]
[359672690,1746239450978,-679.71892541,0.00019999,2]
[359672691,1746239450988,-500.0,0.00019999,2]
[359672692,1746239450998,-281.47230038,0.00019999,2]
[359672693,1746239451008,-312.85418671,0.00019999,2]
[359672694,1746239451018,-300.0,0.00019999,2]
[359672695,1746239451028,-300.0,0.00019999,2]
[359672696,1746239451038,-3975.69203247,0.00019999,2]
[359672697,1746239451047,-267.56632987,0.0002,2]
[359672698,1746239451058,-562411.4291733,0.0002,2]
[359672699,1746239451068,-409524.4541079,0.0002,2]
[359672700,1746239451077,-1779.54156445,0.0002,2]
[359672701,1746239451086,-30000.0,0.0002,2]
[359672702,1746239451096,-1782.67,0.0002,2]
[359672703,1746239451105,-250.0,0.0002,2]
[359672704,1746239451115,-250.0,0.0002,2]
[359672705,1746239451125,-250.0,0.0002,2]
[359672706,1746239451135,-250.0,0.0002,2]
[359672707,1746239451145,-250.0,0.0002,2]
[359672708,1746239451154,-250.0,0.0002,2]
[359672709,1746239451164,-250.0,0.0002,2]
[359672710,1746239451174,-250.0,0.0002,2]
[359672711,1746239451184,-250.0,0.0002,2]
[359672712,1746239451193,-250.0,0.0002,2]
[359672713,1746239451203,-367.2,0.0002,2]
[359672714,1746239451213,-1728789.2599409,0.0002,2]
[359672715,1746239451525,-617.23609784,0.0002,2]
[359672716,1746239451537,-85038.27067718,0.0002,2]
[359672717,1746239451559,-450.0,0.0001986,2]
[359672718,1746239451569,-516.29,0.0002,2]
[359672719,1746239451581,-1113.65390983,0.0002,2]
[359672720,1746239451609,-450.0,0.00019863,2]
[359672721,1746239451618,-6297.32871556,0.0002,2]
[359672722,1746239451953,-151.0,0.0001977,2]
[359672723,1746239451962,-237.643,0.00019889,2]
[359672724,1746239451972,-131.277,0.00019889,2]
[359672725,1746239451983,-136.665,0.00019889,2]
[359672726,1746239451992,-385.835,0.0002,2]
[359672727,1746239452044,-5572.0,0.0002,2]
[359672728,1746239452056,-654.53663311,0.0002,2]
[359672729,1746239452554,-450.0,0.00019586,2]
[359672730,1746239452563,-341.91003279,0.00019589,2]
[359672731,1746239452575,-108.08996721,0.00019589,2]
[359672732,1746239452584,-450.0,0.00019589,2]
[359672733,1746239452593,-224.85,0.00019863,2]
[359672734,1746239452603,-5701.80953084,0.0002,2]
[359672735,1746239452617,-1117.4014,0.0002,2]
[359672736,1746239452628,-1138.47892545,0.0002,2]
[359672737,1746239452648,-1138.0,0.0002,2]
[359672738,1746239452734,-772.80168123,0.0002,2]
[359672739,1746239452745,-309.20075418,0.0002,2]
[359672740,1746239452756,-778.70623745,0.0002,2]
[359672741,1746239452767,-263.258183,0.0002,2]
[359672742,1746239452778,-2269.71357406,0.0002,2]
[359672743,1746239452789,-659.00942352,0.0002,2]
[359672744,1746239452800,-1295.45654622,0.0002,2]
[359672745,1746239554962,151.050311,0.0003287,120]
[359672746,1746239560381,151.050311,0.0003287,119]
[359672747,1746239562137,250.0,0.00018995,2]
[359672748,1746239567272,263.25846256,0.00019492,2]
[359672749,1746239626186,250.0,0.00017,2]
[359672750,1746239627753,300.0,0.00019,2]
[359672751,1746239637966,319.29,0.00018885,2]
[359672752,1746239727462,2230.94,0.0001883,2]
[359672753,1746239736225,189.44307043,0.00019484,2]
[359672754,1746239742136,189.44307042,0.00019485,2]
[359672755,1746239748073,189.44307042,0.00019485,2]
[359672756,1746239835390,625.0591,0.00019486,2]
[359672757,1746239850153,2133.73415686,0.00019486,2]
[359672758,1746239956275,1176.90586778,0.00019588,5]
[359672759,1746239956311,197.42653616,0.00019588,5]
[359672760,1746239956346,1176.90586778,0.00019999,5]
[359672761,1746239956665,2101.2620578,0.00019486,2]
[359672762,1746239959393,1000.0,0.00018714,2]
[359672763,1746239962841,1200.0,0.000191,6]
[359672764,1746239964951,2400.0,0.000192,7]
[359672765,1746239967043,3600.0,0.000193,7]
[359672766,1746239969520,4800.0,0.000194,7]
[359672767,1746239971649,6000.0,0.000195,7]
[359672768,1746239973748,1200.0,0.000196,7]
[359672769,1746239976039,1200.0,0.000197,7]
[359672770,1746239978125,1200.0,0.000198,7]
[359672771,1746239980831,1200.0,0.000199,7]
[359672772,1746240001147,250.0,0.00018723,7]
[359672773,1746240076163,352.36,0.00016771,2]
[359672774,1746240076340,352.36,0.00019035,2]
[359672775,1746240081358,248.27677724,0.00019432,2]
[359672776,1746240086257,299.879305,0.00019433,2]
[359672777,1746240194518,157.050311,0.0003287,120]
[359672778,1746240198498,157.050311,0.0003287,119]
[359672779,1746240202490,157.050311,0.0003287,118]
[359672780,1746240206440,157.050311,0.0003287,117]
[359672781,1746240209460,157.050311,0.0003287,116]
[359672782,1746240212310,157.050311,0.0003287,115]
[359672783,1746240215320,157.050311,0.0003287,114]
[359672784,1746240218681,157.050311,0.0003287,113]
[359672785,1746240222069,157.050311,0.0003287,112]
[359672786,1746240224711,157.050311,0.0003287,111]
[359672787,1746240227979,157.050311,0.0003287,110]
[359672788,1746240231967,157.050311,0.0003287,109]
[359672789,1746240235014,157.050311,0.0003287,108]
[359672790,1746240237820,157.050311,0.0003287,107]
[359672791,1746240238156,198.71012406,0.00019501,2]
[359672792,1746240240556,157.050311,0.0003287,106]
[359672793,1746240245125,157.050311,0.0003287,105]
[359672794,1746240248312,7852.42,0.0001867,2]
[359672795,1746240248348,157.050311,0.0003287,104]
[359672796,1746240252280,157.050311,0.0003287,103]
[359672797,1746240255025,157.050311,0.0003287,102]
[359672798,1746240257928,157.050311,0.0003287,101]
[359672799,1746240261298,157.050311,0.0003287,100]
[359672800,1746240264632,157.050311,0.0003287,99]
[359672801,1746240267776,157.050311,0.0003287,98]
[359672802,1746240270407,157.050311,0.0003287,97]
[359672803,1746240273044,157.050311,0.0003287,96]
[359672804,1746240275836,157.050311,0.0003287,95]
[359672805,1746240279020,157.050311,0.0003287,94]
[359672806,1746240281940,157.050311,0.0003287,93]
[359672807,1746240284809,157.050311,0.0003287,92]
[359672808,1746240287360,157.050311,0.0003287,91]
[359672809,1746240290769,157.050311,0.0003287,90]
[359672810,1746240294439,157.050311,0.0003287,89]
[359672811,1746240298500,157.050311,0.0003287,88]
[359672812,1746240301119,157.050311,0.0003287,87]
[359672813,1746240304091,157.050311,0.0003287,86]
[359672814,1746240308865,157.050311,0.0003287,85]
[359672815,1746240311511,157.050311,0.0003287,84]
[359672816,1746240314306,157.050311,0.0003287,83]
[359672817,1746240316689,157.050311,0.0003287,82]
[359672818,1746240319361,157.050311,0.0003287,81]
[359672819,1746240322607,157.050311,0.0003287,80]
[359672820,1746240322791,3625.82,0.00018857,2]
[359672821,1746240326544,157.050311,0.0003287,79]
[359672822,1746240329871,157.050311,0.0003287,78]
[359672823,1746240332436,157.050311,0.0003287,77]
[359672824,1746240336443,157.050311,0.0003287,76]
[359672825,1746240341439,157.050311,0.0003287,75]
[359672826,1746240343123,2693.33612752,0.00019486,2]
[359672827,1746240344596,157.050311,0.0003287,74]
[359672828,1746240347107,157.050311,0.0003287,73]
[359672829,1746240349583,157.050311,0.0003287,72]
[359672830,1746240352344,157.050311,0.0003287,71]
[359672831,1746240356344,157.050311,0.0003287,70]
[359672832,1746240360360,157.050311,0.0003287,69]
[359672833,1746240362044,219.87,0.00014947,2]
[359672834,1746240363072,157.050311,0.0003287,68]
[359672835,1746240365474,2720.89613956,0.00019485,2]
[359672836,1746240365773,157.050311,0.0003287,67]
[359672837,1746240368389,157.050311,0.0003287,66]
[359672838,1746240370958,157.050311,0.0003287,65]
[359672839,1746240372042,530.2413,0.00019486,2]
[359672840,1746240373193,150.0,0.00018675,2]
[359672841,1746240373534,157.050311,0.0003287,64]
[359672842,1746240376086,157.050311,0.0003287,63]
[359672843,1746240378571,157.050311,0.0003287,62]
[359672844,1746240381101,157.050311,0.0003287,61]
[359672845,1746240385050,157.050311,0.0003287,60]
[359672846,1746240387621,330.1175,0.00019485,2]
[359672847,1746240414948,196.55355446,0.00019432,2]
[359672849,1746240428113,23900.0,0.00018644,2]
[359672850,1746240432225,166.01,0.00018652,2]
[359672851,1746240501691,216.37,0.00018621,2]
[359672859,1746240534474,250.0,0.00018621,2]
[359672863,1746240556892,701.0,0.00032877,60]
[359672866,1746240575171,5000.0,0.0003,30]
[359672867,1746240610774,712.0,0.00032877,60]
[359672868,1746240625270,151.0,0.0002,7]
[359672869,1746240626273,151.0,0.0002,7]
[359672870,1746240626591,151.0,0.0002,7]
[359672871,1746240627062,151.0,0.0002,7]
[359672873,1746240631651,-2720.8961395,0.00019531,2]
[359672874,1746240631661,-250.0,0.00019531,2]
[359672875,1746240631670,-200.0,0.00019531,2]
[359672876,1746240631680,-151.0,0.00019532,2]
[359672877,1746240631690,-2693.33612751,0.00019532,2]
[359672878,1746240631699,-200.0,0.00019548,2]
[359672879,1746240631709,-207.4,0.00019572,2]
[359672880,1746240631718,-500.0,0.00019573,2]
[359672881,1746240631728,-1200.0,0.00019573,2]
[359672882,1746240631737,-300.0,0.00019573,2]
[359672883,1746240631746,-2416.06992478,0.00019574,2]
[359672884,1746240631756,-151.0,0.00019574,2]
[359672885,1746240631765,-151.0,0.00019574,2]
[359672886,1746240631774,-668.65185757,0.00019574,2]
[359672887,1746240631783,-2720.8961395,0.00019577,2]
[359672888,1746240631793,-2693.33612751,0.00019578,2]
[359672889,1746240631802,-500.0,0.00019584,2]
[359672890,1746240631811,-500.0,0.00019584,2]
[359672891,1746240631821,-500.0,0.00019584,2]
[359672892,1746240631831,-500.0,0.00019584,2]
[359672893,1746240631840,-500.0,0.00019584,2]
[359672894,1746240631850,-500.0,0.00019584,2]
[359672895,1746240631859,-500.0,0.00019584,2]
[359672896,1746240631868,-500.0,0.00019584,2]
[359672897,1746240631877,-500.0,0.00019584,2]
[359672900,1746240632243,-500.0,0.00019584,2]
[359672901,1746240632254,-500.0,0.00019584,2]
[359672902,1746240632264,-500.0,0.00019584,2]
[359672903,1746240632273,-500.0,0.00019584,2]
[359672904,1746240632283,-500.0,0.00019584,2]
[359672905,1746240632292,-500.0,0.00019584,2]
[359672906,1746240632302,-500.0,0.00019584,2]
[359672907,1746240632311,-500.0,0.00019584,2]
[359672908,1746240632320,-500.0,0.00019584,2]
[359672909,1746240632329,-500.0,0.00019584,2]
[359672910,1746240632338,-500.0,0.00019584,2]
[359672911,1746240632347,-500.0,0.00019584,2]
[359672912,1746240632356,-500.0,0.00019584,2]
[359672913,1746240632365,-500.0,0.00019584,2]
[359672914,1746240632374,-500.0,0.00019584,2]
[359672915,1746240632383,-500.0,0.00019584,2]
[359672916,1746240632392,-500.0,0.00019584,2]
[359672917,1746240632401,-500.0,0.00019584,2]
[359672918,1746240632410,-500.0,0.00019584,2]
[359672919,1746240632419,-500.0,0.00019584,2]
[359672920,1746240632428,-500.0,0.00019584,2]
[359672921,1746240632437,-500.0,0.00019584,2]
[359672922,1746240632446,-500.0,0.00019584,2]
[359672923,1746240632455,-500.0,0.00019584,2]
[359672924,1746240632464,-500.0,0.00019584,2]
[359672925,1746240632472,-500.0,0.00019584,2]
[359672926,1746240632481,-637.18923083,0.00019584,2]
[359672927,1746240632490,-500.0,0.00019584,2]
[359672928,1746240632499,-500.0,0.00019584,2]
[359672929,1746240632509,-500.0,0.00019584,2]
[359672930,1746240632519,-500.0,0.00019584,2]
[359672931,1746240632528,-500.0,0.00019584,2]
[359672932,1746240632538,-1651.53863339,0.00019584,2]
[359672933,1746240632547,-1651.53863339,0.00019584,2]
[359672934,1746240632556,-1651.53863339,0.00019584,2]
[359672935,1746240632567,-1651.53863339,0.00019584,2]
[359672936,1746240632577,-1651.53863339,0.00019584,2]
[359672937,1746240632589,-1651.53863339,0.00019584,2]
[359672938,1746240632599,-1651.53863339,0.00019584,2]
[359672939,1746240632609,-1651.53863339,0.00019584,2]
[359672940,1746240632618,-1651.53863339,0.00019584,2]
[359672941,1746240632627,-1651.53863339,0.00019584,2]
[359672942,1746240632637,-1651.53863339,0.00019584,2]
[359672943,1746240632646,-1651.53863339,0.00019584,2]
[359672944,1746240632655,-1651.53863339,0.00019584,2]
[359672945,1746240632665,-1651.53863339,0.00019584,2]
[359672946,1746240632674,-1651.53863339,0.00019584,2]
[359672947,1746240632684,-1651.53863339,0.00019584,2]
[359672948,1746240632693,-1651.53863339,0.00019584,2]
[359672949,1746240632702,-1651.53863339,0.00019584,2]
[359672950,1746240632712,-1651.53863339,0.00019584,2]
[359672951,1746240632721,-1651.53863339,0.00019584,2]
[359672952,1746240632731,-1651.53863339,0.00019584,2]
[359672953,1746240632741,-1651.53863339,0.00019584,2]
[359672954,1746240632750,-1651.53863339,0.00019584,2]
[359672955,1746240632760,-1651.53863339,0.00019584,2]
[359672956,1746240632769,-1651.53863339,0.00019584,2]
[359672957,1746240632779,-1651.53863339,0.00019584,2]
[359672958,1746240632788,-1651.53863339,0.00019584,2]
[359672959,1746240632798,-1651.53863339,0.00019584,2]
[359672960,1746240632807,-1651.53863339,0.00019584,2]
[359672961,1746240632817,-1651.53863339,0.00019584,2]
[359672962,1746240632826,-1651.53863339,0.00019584,2]
[359672963,1746240632836,-1651.53863339,0.00019584,2]
[359672964,1746240632845,-1651.53863339,0.00019584,2]
[359672965,1746240632855,-1651.53863339,0.00019584,2]
[359672966,1746240632864,-1651.53863339,0.00019584,2]
[359672967,1746240632874,-1651.53863339,0.00019584,2]
[359672968,1746240632883,-1651.53863339,0.00019584,2]
[359672969,1746240632893,-1621.51065825,0.00019584,2]
[359672970,1746240632902,-1621.51065825,0.00019584,2]
[359672971,1746240632912,-1423.40301864,0.00019584,2]
[359672972,1746240632927,-198.10763961,0.00019584,2]
[359672973,1746240632937,-1621.51065825,0.00019584,2]
[359672974,1746240632947,-1621.51065825,0.00019584,2]
[359672975,1746240632957,-1621.51065825,0.00019584,2]
[359672976,1746240632967,-1621.51065825,0.00019584,2]
[359672977,1746240632976,-1621.51065825,0.00019584,2]
[359672978,1746240632985,-1149.79880615,0.00019584,2]
[359672979,1746240632997,-471.7118521,0.00019584,2]
[359672980,1746240633007,-1621.51065825,0.00019584,2]
[359672981,1746240633016,-1621.51065825,0.00019584,2]
[359672982,1746240633025,-201.59013845,0.00019584,2]
[359672983,1746240633035,-165.90180558,0.00019585,2]
[359672984,1746240633045,-450.0,0.00019585,2]
[359672985,1746240633054,-450.0,0.00019585,2]
[359672986,1746240633064,-450.0,0.00019585,2]
[359672987,1746240633074,-450.0,0.00019585,2]
[359672988,1746240633083,-450.0,0.00019585,2]
[359672989,1746240633093,-556.44,0.00019585,2]
[359672990,1746240633102,-450.0,0.00019585,2]
[359672991,1746240633111,-450.0,0.00019585,2]
[359672992,1746240633121,-450.0,0.00019585,2]
[359672993,1746240633130,-450.0,0.00019585,2]
[359672994,1746240633139,-450.0,0.00019585,2]
[359672995,1746240633153,-450.0,0.00019585,2]
[359672996,1746240633162,-271.67277207,0.00019585,2]
[359672997,1746240633174,-178.32722793,0.00019585,2]
[359672998,1746240633184,-183.0898202,0.00019585,2]
[359672999,1746240633195,-266.9101798,0.00019585,2]
[359673000,1746240633205,-450.0,0.00019585,2]
[359673001,1746240633215,-450.0,0.00019585,2]
[359673002,1746240633225,-450.0,0.00019585,2]
[359673003,1746240633235,-473.64893551,0.00019585,2]
[359673004,1746240633245,-271.17016427,0.00019585,2]
[359673005,1746240633257,-178.82983573,0.00019585,2]
[359673006,1746240633267,-416.81003908,0.00019585,2]
[359673007,1746240633278,-109.46149621,0.00019585,2]
[359673008,1746240633288,-450.0,0.00019585,2]
[359673009,1746240633297,-467.56259824,0.00019585,2]
[359673010,1746240633307,-450.0,0.00019585,2]
[359673011,1746240633317,-259.1967475,0.00019585,2]
[359673012,1746240633330,-220.98043402,0.00019585,2]
[359673013,1746240633339,-191.03883077,0.00019585,2]
[359673014,1746240633351,-258.96116923,0.00019585,2]
[359673015,1746240633361,-318.12704345,0.00019585,2]
[359673016,1746240633373,-370.04022624,0.00019585,2]
[359673017,1746240633395,-204.13273031,0.00019585,2]
[359673018,1746240633405,-469.83046995,0.00019585,2]
[359673019,1746240633415,-685.772945,0.00019585,2]
[359673020,1746240633425,-450.0,0.00019585,2]
[359673021,1746240633435,-292.15768593,0.00019585,2]
[359673022,1746240633447,-178.45010505,0.00019585,2]
[359673023,1746240633457,-470.73379603,0.00019585,2]
[359673024,1746240633467,-465.58248752,0.00019585,2]
[359673025,1746240633478,-476.10273461,0.00019585,2]
[359673026,1746240633487,-450.0,0.00019585,2]
[359673027,1746240633498,-536.436749,0.00019585,2]
[359673028,1746240633508,-516.35152763,0.00019585,2]
[359673029,1746240633517,-450.0,0.00019585,2]
[359673030,1746240633527,-6.48764877,0.00019585,2]